bitfinex/quotes_ETHUSD_20241001
["timestamp","ask_amount","ask_price","bid_price","bid_amount"]
[1727741122998,3.83299,2609.0,2608.7,0.0072]
[1727741123223,3.83266,2609.2,2608.7,0.0072]
[1727741123224,3.83303,2608.9,2608.7,0.0072]
[1727741123941,3.83279,2609.1,2608.7,0.0072]
[1727741123942,3.83233,2609.4,2608.7,0.0072]
[1727741124097,3.83318,2608.8,2608.7,0.0072]
[1727741124296,3.833,2609.0,2608.7,0.0072]
[1727741124502,3.83314,2608.9,2608.7,0.0072]
[1727741124697,3.83318,2608.8,2608.7,0.0072]
[1727741125797,3.83314,2608.9,2608.2,0.7813]
[1727741125798,3.83314,2608.9,2608.2,0.7885]
[1727741126033,3.83391,2608.3,2608.2,0.0072]
[1727741126421,3.83464,2607.8,2607.7,0.7873]
[1727741126642,3.83464,2607.8,2607.2,4.66312]
[1727741126956,3.8345,2607.9,2607.2,4.66312]
[1727741127156,3.8345,2607.9,2607.3,3.83523]
[1727741127351,3.8345,2607.9,2607.4,0.466293]
[1727741130026,3.83467,2607.8,2607.2,3.8277]
[1727741130227,3.83495,2607.6,2607.2,0.8277]
[1727741130428,3.83495,2607.6,2607.5,0.0072]
[1727741130682,3.83495,2607.6,2607.2,0.8277]
[1727741130683,3.83538,2607.3,2607.2,0.0072]
[1727741131381,3.83524,2607.4,2607.2,0.0072]
[1727741131680,3.83538,2607.3,2607.2,0.0072]
[1727741132728,3.83513,2607.5,2607.2,0.0072]
[1727741132956,3.835,2607.6,2607.2,0.0072]
[1727741133126,3.83512,2607.5,2607.2,0.0072]
[1727741133552,3.835,2607.6,2607.2,0.0072]
[1727741133772,3.83473,2607.8,2607.2,0.0072]
[1727741133967,3.83473,2607.8,2607.2,0.55537372]
[1727741134168,3.83473,2607.8,2607.7,0.0072]
[1727741134379,3.83441,2608.0,2607.7,0.0072]
[1727741134545,3.83414,2608.2,2607.9,0.0072]
[1727741134730,3.83414,2608.2,2608.1,0.0072]
[1727741134935,3.83384,2608.4,2608.1,0.0072]
[1727741135191,3.83384,2608.4,2607.9,3.83449]
[1727741135192,3.83384,2608.4,2608.3,0.0072]
[1727741135386,3.83353,2608.6,2608.3,0.0072]
[1727741135676,3.83326,2608.8,2608.5,0.0072]
[1727741135891,3.83295,2609.0,2608.7,0.0072]
[1727741136032,3.83295,2609.0,2608.8,0.0072]
[1727741136240,3.83303,2608.9,2608.8,0.0072]
[1727741139360,4.599628,2608.9,2608.8,0.0072]
[1727741139560,4.599628,2608.9,2608.4,0.0072]
[1727741139561,3.83332,2608.7,2608.4,0.0072]
[1727741139758,3.83357,2608.6,2608.4,0.0072]
[1727741140085,3.83362,2608.5,2608.4,0.0072]
[1727741140648,3.83391,2608.3,2608.2,0.0072]
[1727741140847,4.58810934,2608.3,2608.2,0.0072]
[1727741141446,4.58810934,2608.3,2607.3,3.83529]
[1727741141447,3.8342,2608.1,2608.0,0.0072]
[1727741142181,0.75419934,2608.3,2607.6,0.0072]
[1727741142182,7.66918,2607.9,2607.6,0.0072]
[1727741142362,0.75419934,2608.3,2607.8,0.0072]
[1727741142363,3.83427,2608.1,2607.8,0.0072]
[1727741142577,3.83451,2607.9,2607.8,0.0072]
[1727741144590,7.35,2608.4,2607.9,0.7531]
[1727741144765,7.35,2608.4,2608.3,0.0072]
[1727741144972,3.8337,2608.5,2608.3,0.0072]
[1727741145318,19.78,2608.6,2608.3,0.0072]
[1727741145466,3.8334,2608.7,2608.4,0.7814]
[1727741145662,7.66626,2608.9,2608.6,0.0072]
[1727741145888,3.83312,2608.9,2608.8,0.0072]
[1727741146293,5.385521,2608.9,2608.8,0.0072]
[1727741146496,3.83347,2608.6,2608.5,0.0072]
[1727741147702,3.83347,2608.6,2608.3,0.0072]
[1727741147703,3.83376,2608.4,2608.3,0.0072]
[1727741148125,3.83362,2608.5,2608.3,0.0072]
[1727741149178,3.83347,2608.6,2608.3,0.0072]
[1727741150102,3.83362,2608.5,2608.3,0.0072]
[1727741150271,3.83347,2608.6,2608.3,0.0072]
[1727741150971,3.83366,2608.5,2608.3,0.0072]
[1727741151523,3.83367,2608.5,2608.3,0.0072]
[1727741151726,3.83376,2608.4,2608.3,0.0072]
[1727741152513,3.83346,2608.7,2608.3,0.0072]
[1727741152818,3.83346,2608.7,2607.9,0.0072]
[1727741152819,4.62116,2608.4,2607.9,0.0072]
[1727741153113,3.83435,2608.0,2607.9,0.0072]
[1727741156115,3.83435,2608.0,2607.7,0.8323]
[1727741156472,3.83435,2608.0,2607.9,0.0072]
[1727741157121,3.83419,2608.2,2607.9,0.0072]
[1727741157319,4.66646269,2608.9,2607.5,3.83507]
[1727741157320,3.83323,2608.8,2608.2,4.59415]
[1727741157478,3.83336,2608.7,2608.2,4.59415]
[1727741157915,3.83363,2608.5,2608.2,0.7601]
[1727741158684,3.83336,2608.7,2608.2,0.7601]
[1727741158892,3.83348,2608.6,2608.2,0.7601]
[1727741159680,3.83377,2608.4,2608.2,0.7601]
[1727741159875,3.83391,2608.3,2608.2,0.7601]
[1727741160148,3.83408,2608.2,2607.9,0.7542]
[1727741160425,3.83377,2608.4,2607.9,0.7542]
[1727741160426,3.83392,2608.3,2607.9,0.7542]
[1727741160878,3.83377,2608.4,2607.9,0.7542]
[1727741161232,3.83377,2608.4,2607.9,4.58868]
[1727741161407,3.83298,2609.0,2608.2,3.83404]
[1727741161610,7.66591,2609.0,2608.2,3.91071145]
[1727741161784,0.814,2609.7,2608.8,3.83316]
[1727741162126,0.814,2609.7,2608.9,0.86845214]
[1727741162127,3.8324,2609.4,2608.9,0.86845214]
[1727741162353,3.8324,2609.4,2609.3,0.0072]
[1727741164735,1.02273356,2609.7,2609.3,0.0072]
[1727741164736,4.85464356,2609.7,2609.3,0.0072]
[1727741165033,4.85464356,2609.7,2609.4,0.7623]
[1727741165034,3.83195,2609.7,2609.4,0.7623]
[1727741165233,3.83172,2609.8,2609.4,0.7623]
[1727741165234,3.83202,2609.6,2609.4,0.7623]
[1727741165391,3.83202,2609.6,2609.5,0.0072]
[1727741166310,4.598394,2609.6,2609.5,0.0072]
[1727741166646,4.598394,2609.6,2609.1,0.8184]
[1727741166843,3.83202,2609.6,2609.1,0.8184]
[1727741167135,3.83202,2609.6,2609.5,0.0072]
[1727741169399,4.63126,2609.7,2609.1,0.0072]
[1727741169400,3.83259,2609.2,2609.1,0.0072]
[1727741169711,4.63126,2609.7,2608.3,0.8019]
[1727741169712,3.8328,2609.1,2608.3,0.8019]
[1727741169964,0.7994,2609.7,2608.9,0.8271]
[1727741169965,3.83249,2609.3,2608.9,0.8271]
[1727741170110,0.7994,2609.7,2609.2,0.0072]
[1727741170111,3.83225,2609.5,2609.2,0.0072]
[1727741170312,3.83225,2609.5,2609.3,0.0072]
[1727741170500,3.83193,2609.7,2609.3,0.0072]
[1727741170721,3.83193,2609.7,2609.6,0.0072]
[1727741172902,3.83193,2609.7,2609.3,0.0072]
[1727741173222,3.83223,2609.5,2609.3,0.0072]
[1727741174254,3.83195,2609.7,2609.4,0.8036]
[1727741174430,3.83195,2609.7,2609.6,0.0072]
[1727741176313,0.7755,2610.7,2609.9,0.8171]
[1727741176560,3.83001,2611.0,2610.3,0.8171]
[1727741176834,8.1255,2611.2,2610.3,0.8171]
[1727741176835,3.82974,2611.2,2610.9,0.0072]
[1727741177013,3.82995,2611.0,2610.9,0.7792]
[1727741178412,3.82995,2611.0,2610.9,0.0072]
[1727741178839,4.595925,2611.0,2610.9,0.0072]
[1727741179033,4.595925,2611.0,2610.3,3.0]
[1727741179034,3.83039,2610.7,2610.6,0.0072]
[1727741180498,3.83039,2610.7,2609.6,3.83192]
[1727741180499,3.83079,2610.5,2610.3,0.0072]
[1727741180841,3.83083,2610.4,2610.3,0.0072]
[1727741182776,4.213913,2610.4,2610.3,0.0072]
[1727741182949,4.213913,2610.4,2609.9,0.0072]
[1727741182950,1.141083,2610.4,2609.9,0.0072]
[1727741183291,3.83141,2610.0,2609.9,0.0072]
[1727741185151,3.0,2610.7,2610.1,0.0072]
[1727741185457,1.99613953,2611.6,2609.7,0.7662]
[1727741185458,3.83083,2610.4,2610.2,0.8259]
[1727741185671,11.17998,2611.0,2609.7,3.83179]
[1727741185672,3.83119,2610.2,2609.9,0.8259]
[1727741185869,3.83119,2610.2,2610.1,0.0072]
[1727741189085,3.83112,2610.2,2610.1,0.0072]
[1727741190351,3.83098,2610.3,2610.1,0.0072]
[1727741190582,7.66204,2610.3,2610.1,0.0072]
[1727741190951,3.83112,2610.2,2610.1,0.0072]
[1727741192858,4.59733,2610.2,2610.1,0.0072]
[1727741193184,3.83141,2610.0,2609.9,0.0072]
[1727741193358,3.83141,2610.0,2609.6,0.7788]
[1727741193747,3.83098,2610.3,2609.7,3.90847271]
[1727741193949,3.83098,2610.3,2610.2,0.0072]
[1727741194766,3.8307,2610.5,2610.2,0.824]
[1727741194964,3.8307,2610.5,2610.4,0.0072]
[1727741196094,3.83061,2610.6,2610.4,0.0072]
[1727741197297,3.83068,2610.5,2610.4,0.0072]
[1727741197594,3.83061,2610.6,2610.4,0.0072]
[1727741197595,7.66123,2610.6,2610.4,0.0072]
[1727741197904,3.83061,2610.6,2610.4,0.0072]
[1727741198488,3.83068,2610.5,2610.4,0.0072]
[1727741198688,3.83068,2610.5,2609.8,3.0]
[1727741198689,7.66144,2610.5,2610.2,0.0072]
[1727741198906,3.83068,2610.5,2610.2,0.0072]
[1727741199063,7.66146,2610.5,2610.4,0.0072]
[1727741199263,3.83068,2610.5,2610.4,0.0072]
[1727741199814,3.83045,2610.7,2610.4,0.0072]
[1727741199963,3.82987,2611.1,2610.5,0.8186]
[1727741200168,3.82987,2611.1,2610.9,0.0072]
[1727741200372,7.65923,2611.3,2610.9,0.0072]
[1727741200566,7.65923,2611.3,2610.8,0.821]
[1727741200567,3.82958,2611.3,2610.8,0.821]
[1727741200767,3.82958,2611.3,2611.2,0.0072]
[1727741201609,3.8298,2611.1,2611.0,0.0072]
[1727741201765,12.44,2612.1,2611.0,0.0072]
[1727741201766,0.7837,2611.8,2611.1,0.821]
[1727741201968,0.45310819,2612.4,2611.0,0.0072]
[1727741201969,3.82877,2611.9,2611.3,0.821]
[1727741202286,3.82877,2611.8,2611.4,0.47271302]
[1727741202720,3.82882,2611.8,2611.4,0.47271302]
[1727741202865,3.82875,2611.9,2611.3,0.821]
[1727741203402,3.82875,2611.9,2611.3,3.821]
[1727741204099,3.82875,2611.9,2611.3,7.65049]
[1727741204401,3.82875,2611.9,2611.3,8.798495]
[1727741206561,3.82901,2611.7,2611.3,0.821]
[1727741206763,3.82917,2611.6,2611.3,0.821]
[1727741206962,3.82956,2611.3,2611.0,0.7758]
[1727741207193,3.82956,2611.3,2611.2,0.0072]
[1727741207377,3.82956,2611.3,2611.0,0.0072]
[1727741208361,3.82969,2611.2,2611.0,0.0072]
[1727741209037,3.82969,2611.2,2611.1,0.0072]
[1727741209168,3.82965,2611.2,2611.1,0.0072]
[1727741210072,7.65921,2611.3,2611.1,0.0072]
[1727741210267,3.82965,2611.2,2611.1,0.0072]
[1727741211717,7.65917,2611.3,2611.1,0.0072]
[1727741211870,3.82956,2611.3,2611.1,0.0072]
[1727741212217,7.65917,2611.3,2611.1,0.0072]
[1727741212386,3.82956,2611.3,2611.1,0.0072]
[1727741212590,7.6592,2611.3,2611.1,0.0072]
[1727741212914,3.82965,2611.2,2611.1,0.0072]
[1727741213080,3.82999,2611.0,2610.8,0.0072]
[1727741213512,7.66002,2611.0,2610.8,0.0072]
[1727741213811,3.82999,2611.0,2610.8,0.0072]
[1727741214014,7.66002,2611.0,2610.8,0.0072]
[1727741214412,3.82999,2611.0,2610.8,0.0072]
[1727741214713,7.66003,2611.0,2610.8,0.0072]
[1727741214920,3.82999,2611.0,2610.8,0.0072]
[1727741215364,3.82969,2611.2,2610.8,0.0072]
[1727741216124,3.82955,2611.3,2610.9,0.7979]
[1727741216305,3.82955,2611.3,2611.2,0.0072]
[1727741216508,3.82922,2611.5,2611.2,0.0072]
[1727741216822,3.82904,2611.7,2611.4,0.0072]
[1727741216985,3.82904,2611.7,2611.6,0.0072]
[1727741218023,1.539482,2611.7,2611.4,0.0072]
[1727741218318,1.539482,2611.7,2611.2,0.0072]
[1727741218319,3.82951,2611.3,2611.2,0.0072]
[1727741218626,1.539482,2611.7,2611.2,0.0072]
[1727741218947,3.82938,2611.4,2611.2,0.0072]
[1727741221495,3.82935,2611.5,2611.2,0.0072]
[1727741221696,0.8234,2611.9,2611.2,0.0072]
[1727741221893,3.82938,2611.4,2611.2,0.0072]
[1727741222395,3.82918,2611.6,2611.2,0.0072]
[1727741222718,3.82865,2611.9,2611.3,0.8266]
[1727741222898,3.82865,2611.9,2611.8,0.0072]
[1727741223317,3.82858,2612.0,2611.8,0.0072]
[1727741223609,3.82798,2612.4,2611.8,4.66244]
[1727741223800,7.35,2612.7,2611.8,4.66244]
[1727741223801,3.82785,2612.5,2612.3,0.0072]
[1727741224230,3.82789,2612.4,2612.3,0.0072]
[1727741224798,3.82785,2612.5,2611.8,0.8266]
[1727741224799,3.82785,2612.5,2612.1,0.0072]
[1727741225109,3.82819,2612.2,2612.1,0.0072]
[1727741226987,4.593813,2612.2,2612.1,0.0072]
[1727741227717,3.82848,2612.0,2611.9,0.0072]
[1727741228082,3.82848,2612.0,2611.6,0.0072]
[1727741228083,3.82892,2611.7,2611.6,0.0072]
[1727741228398,4.59222,2611.7,2611.6,0.0072]
[1727741228585,5.43432,2611.7,2611.6,0.0072]
[1727741229730,3.82936,2611.4,2611.3,0.0072]
[1727741233029,7.65856,2611.5,2611.3,0.0072]
[1727741233206,3.82922,2611.5,2611.3,0.0072]
[1727741234694,3.82936,2611.4,2611.3,0.0072]
[1727741239928,3.82906,2611.7,2611.3,0.0072]
[1727741240153,3.82878,2611.8,2611.4,0.7678]
[1727741240315,3.82858,2612.0,2611.7,0.0072]
[1727741240517,3.82858,2612.0,2611.9,0.0072]
[1727741240753,3.82829,2612.2,2611.9,0.775]
[1727741240917,3.82829,2612.2,2612.1,0.0072]
[1727741244352,3.82804,2612.3,2612.1,0.0072]
[1727741244561,3.82791,2612.4,2612.2,0.0072]
[1727741244725,3.82791,2612.4,2612.3,0.0072]
[1727741244924,3.82754,2612.7,2612.4,0.7506]
[1727741245268,3.82722,2612.9,2612.6,0.0072]
[1727741245444,3.82722,2612.9,2612.8,0.0072]
[1727741247464,3.82701,2613.0,2612.9,0.7952]
[1727741248261,3.82687,2613.1,2612.9,0.7952]
[1727741248462,3.82665,2613.3,2613.0,0.0072]
[1727741248764,3.82665,2613.3,2613.2,0.0072]
[1727741250654,4.60469317,2613.3,2613.2,0.0072]
[1727741250893,4.60469317,2613.3,2612.3,3.0]
[1727741250894,1.58714317,2613.3,2612.8,0.0072]
[1727741251156,3.82716,2612.9,2612.8,0.0072]
[1727741252675,3.82716,2612.9,2612.3,0.89295184]
[1727741252836,3.82752,2612.7,2612.3,0.89295184]
[1727741253037,3.82752,2612.7,2612.6,0.0072]
[1727741254463,4.593003,2612.7,2612.6,0.0072]
[1727741255360,3.82752,2612.7,2612.6,0.0072]
[1727741256222,3.82752,2612.7,2612.3,0.0072]
[1727741256422,3.82752,2612.7,2611.1,3.96836677]
[1727741256423,3.82833,2612.1,2612.0,0.0072]
[1727741258076,3.82819,2612.2,2611.5,0.0072]
[1727741258077,3.82907,2611.6,2611.5,0.0072]
[1727741258391,0.8029,2611.8,2611.1,0.814]
[1727741258392,3.82946,2611.4,2611.1,0.814]
[1727741259368,0.8029,2611.8,2611.1,0.0072]
[1727741259369,3.82975,2611.2,2611.1,0.0072]
[1727741259665,7.65916,2611.3,2611.1,0.0072]
[1727741259825,3.82955,2611.3,2611.1,0.0072]
[1727741260535,3.82965,2611.2,2611.1,0.0072]
[1727741261980,4.59575,2611.2,2611.1,0.0072]
[1727741263288,3.82942,2611.4,2611.1,0.0072]
[1727741263582,3.82965,2611.2,2611.1,0.0072]
[1727741264769,3.82942,2611.4,2611.1,0.0072]
[1727741265126,3.82965,2611.2,2611.1,0.0072]
[1727741265666,7.65889,2611.4,2611.1,0.0072]
[1727741266359,3.82952,2611.3,2611.1,0.0072]
[1727741266565,3.82965,2611.2,2611.1,0.0072]
[1727741267547,5.35435817,2611.2,2611.1,0.0072]
[1727741267960,5.35435817,2611.2,2610.9,0.0072]
[1727741267961,3.82995,2611.0,2610.9,0.0072]
[1727741269673,3.82981,2611.1,2610.9,0.0072]
[1727741270708,3.82975,2611.2,2610.9,0.0072]
[1727741270913,3.82981,2611.1,2610.9,0.0072]
[1727741271597,3.82959,2611.3,2610.9,0.0072]
[1727741271971,3.82995,2611.0,2610.9,0.0072]
[1727741272477,0.8236,2611.6,2611.0,0.7905]
[1727741272478,3.82945,2611.4,2611.0,0.7905]
[1727741272794,3.82944,2611.4,2611.3,0.0072]
[1727741273395,3.82917,2611.6,2611.3,0.0072]
[1727741273779,3.82883,2611.8,2611.3,0.0072]
[1727741274148,3.82855,2612.0,2611.4,4.66087]
[1727741274418,3.82828,2612.2,2611.9,0.8388]
[1727741274580,3.82828,2612.2,2612.1,0.0072]
[1727741275012,3.82805,2612.3,2612.1,0.0072]
[1727741275215,7.35,2612.7,2612.2,0.0072]
[1727741275365,0.7906,2612.8,2611.9,0.90816955]
[1727741275573,3.82745,2612.7,2611.9,4.73678955]
[1727741275805,3.82786,2612.5,2611.9,4.73678955]
[1727741276222,3.82793,2612.4,2611.9,0.90816955]
[1727741276417,3.8279,2612.4,2612.3,0.0072]
[1727741276822,3.82775,2612.5,2612.3,0.0072]
[1727741276973,7.65561,2612.5,2612.3,0.0072]
[1727741277214,3.82789,2612.4,2612.3,0.0072]
[1727741277604,0.7906,2612.8,2612.3,0.0072]
[1727741277605,3.82771,2612.6,2612.3,0.0072]
[1727741277805,3.82753,2612.7,2612.4,0.7529]
[1727741278009,3.82705,2613.0,2612.6,0.0072]
[1727741278213,3.82791,2612.4,2612.1,0.7529]
[1727741278519,3.82762,2612.6,2612.3,0.0072]
[1727741278917,3.82762,2612.6,2612.5,0.0072]
[1727741279280,3.82734,2612.8,2612.5,0.0072]
[1727741279580,3.82734,2612.8,2612.1,4.58121]
[1727741279581,3.82734,2612.8,2612.7,0.0072]
[1727741280828,3.82731,2612.8,2612.7,0.0072]
[1727741281194,4.210041,2612.8,2612.7,0.0072]
[1727741281522,5.042841,2612.8,2612.7,0.0072]
[1727741281729,5.042841,2612.8,2611.8,0.8123]
[1727741281730,3.82813,2612.3,2612.0,0.0072]
[1727741282036,3.82835,2612.1,2611.8,0.8123]
[1727741282401,3.82851,2612.0,2611.8,0.8123]
[1727741282599,1.215531,2612.8,2611.8,0.8123]
[1727741282809,3.82799,2612.4,2611.8,4.641]
[1727741283112,3.82786,2612.5,2612.3,0.0072]
[1727741283586,6.82689,2613.1,2612.3,0.0072]
[1727741283587,3.82678,2613.2,2612.6,3.82751]
[1727741283813,0.1273517,2613.5,2612.6,3.82751]
[1727741283814,3.8267,2613.3,2612.8,0.7965]
[1727741284010,3.82672,2613.2,2613.1,0.0072]
[1727741284587,3.8267,2613.3,2613.1,0.0072]
[1727741284822,3.82672,2613.2,2613.1,0.0072]
[1727741285025,3.9537517,2613.5,2613.1,0.0072]
[1727741285189,3.82672,2613.2,2613.1,0.0072]
[1727741287932,5.345961,2613.2,2613.1,0.0072]
[1727741288311,4.592061,2613.2,2612.9,0.0072]
[1727741288628,4.592061,2613.2,2613.1,0.0072]
[1727741290284,3.82672,2613.2,2613.1,0.0072]
[1727741294958,4.58612,2613.2,2613.1,0.0072]
[1727741295254,3.82775,2612.5,2612.4,0.0072]
[1727741295462,3.82789,2612.4,2612.3,0.7621]
[1727741295611,3.82688,2613.1,2611.9,0.7542]
[1727741295612,3.82812,2612.3,2611.9,0.7542]
[1727741295810,3.82812,2612.3,2612.2,0.0072]
[1727741295811,3.82804,2612.3,2612.2,0.0072]
[1727741296048,3.82756,2612.7,2612.2,0.0072]
[1727741296248,3.82775,2612.5,2612.2,0.0072]
[1727741296751,3.82775,2612.5,2612.3,0.8265]
[1727741296955,3.82775,2612.5,2612.4,0.0072]
[1727741297163,3.82756,2612.7,2612.4,0.0072]
[1727741297164,3.82755,2612.7,2612.4,0.0072]
[1727741297454,3.82755,2612.7,2612.6,0.0072]
[1727741298560,3.82795,2612.4,2612.2,0.0072]
[1727741298755,3.82795,2612.4,2611.7,3.82885]
[1727741298756,3.82795,2612.4,2611.9,0.795]
[1727741298967,3.82795,2612.4,2612.3,0.0072]
[1727741300184,3.82795,2612.4,2612.0,0.0072]
[1727741300185,3.82833,2612.1,2612.0,0.0072]
[1727741300376,4.59003,2612.1,2612.0,0.0072]
[1727741300666,3.82863,2611.9,2611.8,0.0072]
[1727741301469,3.82848,2612.0,2611.8,0.0072]
[1727741301848,7.65707,2612.0,2611.8,0.0072]
[1727741302467,3.82848,2612.0,2611.8,0.0072]
[1727741302968,3.82824,2612.2,2611.9,0.7628]
[1727741303168,3.82848,2612.0,2611.9,0.7628]
[1727741303530,3.82848,2612.0,2611.9,0.77]
[1727741304471,3.82824,2612.2,2611.9,0.77]
[1727741304676,7.65656,2612.2,2611.9,0.77]
[1727741304868,3.82836,2612.1,2611.9,0.77]
[1727741305047,7.65653,2612.2,2611.9,0.77]
[1727741305454,3.82833,2612.1,2611.9,0.77]
[1727741305849,3.82848,2612.0,2611.9,0.0072]
[1727741306045,4.594162,2612.0,2611.9,0.0072]
[1727741306345,5.426462,2612.0,2611.9,0.0072]
[1727741306761,5.426462,2612.0,2611.8,0.0072]
[1727741306762,3.82877,2611.9,2611.8,0.0072]
[1727741306961,0.8323,2612.3,2611.8,0.0072]
[1727741306962,3.82829,2612.2,2611.8,0.0072]
[1727741307161,3.82829,2612.2,2611.8,0.8004]
[1727741307162,3.82848,2612.0,2611.8,0.8004]
[1727741307368,7.65661,2612.2,2611.8,0.8004]
[1727741307562,3.82829,2612.2,2611.8,0.8004]
[1727741307776,3.82834,2612.1,2611.8,0.8004]
[1727741307959,3.82849,2612.0,2611.8,0.8004]
[1727741308286,3.82787,2612.5,2611.8,0.8004]
[1727741308457,7.65572,2612.5,2612.0,0.7932]
[1727741308665,3.82792,2612.4,2612.1,0.462179]
[1727741309570,3.82776,2612.5,2612.1,0.462179]
[1727741311011,3.82801,2612.4,2612.1,0.462179]
[1727741311210,3.82806,2612.3,2612.0,0.7932]
[1727741311810,3.82823,2612.2,2612.0,0.7932]
[1727741312129,3.8286,2612.0,2611.7,0.8232]
[1727741312270,3.8286,2612.0,2610.8,7.79855677]
[1727741312271,3.82916,2611.6,2611.3,0.8232]
[1727741312909,3.82916,2611.6,2611.5,0.0072]
[1727741314375,4.63526,2611.6,2611.5,0.0072]
[1727741315322,3.82995,2611.0,2610.9,0.0072]
[1727741315531,7.65973,2611.1,2610.9,0.0072]
[1727741315683,3.82995,2611.0,2610.9,0.0072]
[1727741317831,3.82958,2611.3,2610.9,0.0072]
[1727741318032,3.82966,2611.2,2610.9,0.0072]
[1727741318706,3.82984,2611.1,2610.9,0.0072]
[1727741319146,3.82995,2611.0,2610.9,0.0072]
[1727741323429,3.82984,2611.1,2610.9,0.0072]
[1727741323839,3.82995,2611.0,2610.9,0.0072]
[1727741326617,3.82959,2611.3,2610.9,0.0072]
[1727741327651,3.82982,2611.1,2610.9,0.0072]
[1727741328782,3.82968,2611.2,2610.9,0.0072]
[1727741329491,3.82959,2611.3,2610.9,0.0072]
[1727741329675,7.65924,2611.3,2611.0,0.7564]
[1727741329848,7.65924,2611.3,2611.2,0.0072]
[1727741332100,9.216664,2611.3,2611.2,0.0072]
[1727741332262,3.83024,2610.8,2610.7,0.0072]
[1727741333041,3.8299,2611.1,2610.7,0.0072]
[1727741333203,3.83012,2610.9,2610.7,0.0072]
[1727741333404,3.83024,2610.8,2610.7,0.0072]
[1727741333639,3.83012,2610.9,2610.7,0.0072]
[1727741333841,7.66031,2610.9,2610.7,0.0072]
[1727741334150,3.83024,2610.8,2610.7,0.0072]
[1727741334300,3.83012,2610.9,2610.7,0.0072]
[1727741334504,7.6603,2610.9,2610.7,0.0072]
[1727741334735,3.83012,2610.9,2610.7,0.0072]
[1727741335623,3.83024,2610.8,2610.7,0.0072]
[1727741336850,3.83012,2610.9,2610.7,0.0072]
[1727741337417,7.66036,2610.9,2610.7,0.0072]
[1727741337822,3.83024,2610.8,2610.7,0.0072]
[1727741338353,3.83012,2610.9,2610.7,0.0072]
[1727741340022,7.65974,2611.1,2610.7,0.0072]
[1727741340223,3.82984,2611.1,2610.7,0.0072]
[1727741340467,7.65973,2611.1,2610.7,0.0072]
[1727741340625,3.83018,2610.9,2610.7,0.0072]
[1727741341158,3.83024,2610.8,2610.7,0.0072]
[1727741342638,7.05068845,2610.8,2610.7,0.0072]
[1727741342936,7.05068845,2610.8,2609.2,1.98704389]
[1727741342937,3.83083,2610.4,2610.3,0.0072]
[1727741343122,7.05127845,2610.4,2610.3,0.0072]
[1727741343323,8.9326753,2610.4,2610.3,0.0072]
[1727741343534,3.83156,2609.9,2609.5,0.7664]
[1727741343859,3.83156,2609.9,2609.1,0.8122]
[1727741343860,3.83199,2609.7,2609.1,0.8122]
[1727741344063,3.83199,2609.7,2609.6,0.0072]
[1727741344274,3.83173,2609.8,2609.6,0.0072]
[1727741344426,3.83173,2609.8,2609.7,0.0072]
[1727741345289,4.678987,2609.8,2609.7,0.0072]
[1727741346450,3.83173,2609.8,2609.7,0.0072]
[1727741347131,7.05217845,2609.8,2609.7,0.0072]
[1727741347327,3.83259,2609.2,2609.1,0.0072]
[1727741347632,3.83259,2609.2,2608.2,0.8018]
[1727741347633,3.83362,2608.5,2608.2,0.8018]
[1727741347829,3.83362,2608.5,2608.4,0.0072]
[1727741349167,3.83341,2608.7,2608.4,0.0072]
[1727741349373,3.83362,2608.5,2608.4,0.0072]
[1727741349576,3.83341,2608.7,2608.4,0.0072]
[1727741350457,7.66687,2608.7,2608.4,0.0072]
[1727741350661,3.83349,2608.6,2608.4,0.0072]
[1727741351367,3.83362,2608.5,2608.4,0.0072]
[1727741352779,3.83341,2608.7,2608.4,0.7872]
[1727741352985,3.8331,2608.9,2608.4,0.7872]
[1727741352986,7.66623,2608.9,2608.6,0.0072]
[1727741353148,7.66623,2608.9,2608.8,0.0072]
[1727741354881,7.35,2609.5,2608.8,0.0072]
[1727741355061,3.83238,2609.4,2609.1,0.0072]
[1727741355437,3.83238,2609.4,2609.3,0.0072]
[1727741355988,7.35,2609.9,2609.3,0.0072]
[1727741355989,3.83197,2609.7,2609.3,0.0072]
[1727741357162,3.83197,2609.7,2609.4,0.7768]
[1727741357481,3.83197,2609.7,2609.6,0.0072]
[1727741358006,3.83163,2609.9,2609.6,0.0072]
[1727741358312,3.83163,2609.9,2609.4,0.7768]
[1727741358313,7.66329,2609.9,2609.8,0.0072]
[1727741359366,3.83163,2609.9,2609.8,0.0072]
[1727741361901,3.83138,2610.1,2609.8,0.0072]
[1727741362120,3.83156,2609.9,2609.8,0.0072]
[1727741362392,3.83142,2610.0,2609.8,0.0072]
[1727741363233,3.83156,2609.9,2609.8,0.0072]
[1727741363706,3.83129,2610.1,2609.8,0.0072]
[1727741363918,8.131,2610.6,2609.9,4.65076]
[1727741363919,3.83069,2610.5,2609.9,4.65076]
[1727741364110,4.64278,2611.0,2610.1,0.0072]
[1727741364111,0.8128,2611.0,2610.1,0.0072]
[1727741364291,0.8128,2611.0,2610.2,4.71092241]
[1727741364292,3.83034,2610.8,2610.2,4.71092241]
[1727741364485,3.83034,2610.8,2610.7,0.0072]
[1727741365021,3.83003,2611.0,2610.7,0.0072]
[1727741365385,3.83024,2610.8,2610.7,0.0072]
[1727741367323,3.83003,2611.0,2610.7,0.0072]
[1727741367536,0.8227,2611.3,2610.8,0.7771]
[1727741367537,3.82976,2611.2,2610.8,0.7771]